bitfinex/quotes_ETHUSD_20220109
["timestamp","ask_amount","ask_price","bid_price","bid_amount"]
[1641695499396,0.79887,3130.8,3130.4,0.0073895]
[1641695499598,0.79887,3130.8,3130.3,0.00795793]
[1641695499998,0.79887,3130.8,3130.2,0.00852635]
[1641695500200,0.79887,3130.8,3130.3,0.7988121]
[1641695500601,0.79887,3130.8,3130.4,0.0073895]
[1641695502144,0.79887,3130.8,3130.2,0.00852635]
[1641695502746,0.79887,3131.0,3130.3,3.35]
[1641695503147,0.79887,3131.0,3130.4,0.0073895]
[1641695503544,0.74887,3131.0,3130.4,0.0073895]
[1641695503749,0.79888,3130.7,3130.4,0.0073895]
[1641695504146,0.79888,3130.7,3130.2,0.80736925]
[1641695504346,0.79888,3130.7,3130.3,0.00795793]
[1641695508409,0.462,3130.6,3130.3,0.00795793]
[1641695508709,0.79903,3130.5,3130.2,0.00852635]
[1641695509108,1.79903,3130.5,3130.2,0.00852635]
[1641695509548,1.79903,3130.5,3129.9,0.01023162]
[1641695509549,3.9971715,3130.5,3129.9,0.01023162]
[1641695510152,5.1,3130.3,3129.8,3.84301545]
[1641695510349,0.79931,3130.0,3129.8,1.545e-05]
[1641695510549,5.562,3129.9,3129.8,1.545e-05]
[1641695510748,5.562,3129.9,3128.8,3.6631]
[1641695510749,0.7993,3129.4,3128.8,3.6631]
[1641695511051,0.462,3130.5,3129.9,1.57314778]
[1641695511451,0.00227369,3130.3,3129.9,1.57314778]
[1641695511648,0.74906,3130.1,3129.9,1.57314778]
[1641695512050,0.74906,3130.1,3129.1,4.6154326]
[1641695512249,0.74906,3130.1,3129.1,3.8164]
[1641695512449,0.74906,3130.1,3129.2,0.00397896]
[1641695512648,0.799177,3129.9,3129.2,0.00397896]
[1641695512848,0.79923,3129.6,3129.2,0.00397896]
[1641695513302,1.84432,3129.5,3129.2,0.00397896]
[1641695513502,1.84432,3129.5,3129.0,0.00511581]
[1641695513704,0.462,3129.7,3128.6,3.17273356]
[1641695514006,0.462,3129.7,3128.7,0.00682108]
[1641695514007,0.79915,3129.2,3128.7,0.00682108]
[1641695515603,0.462,3129.7,3128.8,4.85]
[1641695516004,0.462,3129.7,3128.7,0.00682108]
[1641695516203,0.79915,3129.2,3128.7,0.00682108]
[1641695517049,0.79915,3129.2,3128.6,1.90122926]
[1641695517252,0.79915,3129.2,3128.6,0.0073895]
[1641695517450,0.79915,3129.2,3128.7,0.00682108]
[1641695517650,0.79915,3129.2,3128.6,0.0073895]
[1641695517851,1.0,3129.7,3128.7,5.1]
[1641695518250,1.0,3129.7,3128.8,1.91064857]
[1641695518451,2.39767,3129.8,3128.8,0.00625266]
[1641695518452,1.59845,3129.3,3128.8,0.00625266]
[1641695518851,1.59845,3129.3,3128.7,0.00682108]
[1641695519853,0.76431228,3129.4,3128.8,4.05]
[1641695520053,0.79921,3129.6,3128.8,4.05]
[1641695520898,0.79921,3129.6,3128.7,0.00682108]
[1641695521100,0.79922,3129.1,3128.7,0.00682108]
[1641695521300,0.69922,3129.1,3128.7,0.00682108]
[1641695521501,0.69922,3129.1,3128.6,0.0073895]
[1641695522302,1.81242,3129.1,3128.6,0.0073895]
[1641695522601,0.79938,3128.9,3128.6,0.0073895]
[1641695523102,0.79938,3128.9,3128.2,0.0096632]
[1641695525745,1.59879,3128.9,3128.2,0.0096632]
[1641695525946,0.79937,3128.6,3128.2,0.0096632]
[1641695527549,0.79959,3128.4,3128.2,0.0096632]
[1641695528697,1.59919,3128.4,3128.2,0.0096632]
[1641695529099,1.59919,3128.4,3128.1,0.9356877]
[1641695529100,2.90039,3128.4,3128.1,0.9356877]
[1641695529804,2.90039,3128.4,3127.7,6.16]
[1641695529805,5.4,3128.3,3127.7,6.16]
[1641695529998,0.79968,3128.0,3127.7,6.16]
[1641695530198,0.79967,3127.9,3127.8,0.00227369]
[1641695530600,0.79967,3127.9,3127.5,0.00397896]
[1641695530799,1.69967,3127.9,3127.5,0.00397896]
[1641695531000,2.29967,3127.9,3127.3,0.00511581]
[1641695531202,2.29967,3127.9,3127.0,3.877]
[1641695531203,0.79966,3127.7,3126.8,1.55732685]
[1641695531407,2.13796,3127.7,3126.8,1.55732685]
[1641695531603,2.86339527,3127.6,3126.9,0.00227369]
[1641695532156,1.00113685,3127.5,3126.9,0.00227369]
[1641695532361,2.06313685,3127.5,3126.9,0.00227369]
[1641695532657,0.79992,3127.2,3126.8,1.55732685]
[1641695532856,1.39992,3127.2,3126.4,1.55732685]
[1641695533058,0.46313684,3127.1,3126.4,1.55732685]
[1641695533257,0.46313684,3127.1,3126.5,0.0022737]
[1641695533457,0.8000548,3126.8,3126.5,0.0022737]
[1641695533656,0.8000548,3126.8,3126.4,1.55732685]
[1641695533657,1.6001148,3126.8,3126.4,1.55732685]
[1641695533860,3.05,3126.7,3126.4,1.55732685]
[1641695534057,0.00113684,3126.7,3125.9,1.55732685]
[1641695534457,0.00113684,3126.7,3126.0,0.00284211]
[1641695534657,5.00028,3127.0,3126.9,5.01420357]
[1641695534856,5.00028,3127.0,3126.1,1.55732685]
[1641695535061,0.00113686,3126.9,3126.1,1.55732685]
[1641695535257,0.00113686,3126.9,3126.2,0.00284211]
[1641695535497,0.64223771,3127.0,3126.2,0.00284211]
[1641695535698,1.44221991,3127.0,3126.2,0.00397897]
[1641695536098,0.80002,3126.8,3126.2,1.56130582]
[1641695536504,1.59992,3126.6,3126.3,0.00341054]
[1641695537300,1.89992,3126.6,3126.2,0.00397897]
[1641695537500,3.500084,3126.6,3126.2,0.00397897]
[1641695537703,5.300154,3126.6,3126.2,0.00397897]
[1641695537900,0.3,3126.4,3126.2,0.00397897]
[1641695538102,0.80016,3126.3,3125.8,1.55732685]
[1641695538303,0.80016,3126.3,3125.9,0.00170527]
[1641695538503,2.26216,3126.3,3125.9,0.00170527]
[1641695539256,0.80017,3126.2,3125.9,0.00170527]
[1641695539453,0.80012,3126.1,3125.9,0.00170527]
[1641695539650,0.80012,3126.1,3125.7,0.00284212]
[1641695539852,0.80012,3126.1,3125.7,1.56016897]
[1641695540149,0.80012,3126.1,3125.8,0.00227369]
[1641695540352,0.80012,3126.1,3126.0,5.98475291]
[1641695540767,3.68701643,3127.4,3126.0,7.58588975]
[1641695541150,0.00113685,3126.4,3126.1,2.38749671]
[1641695541351,0.00113685,3126.4,3126.0,7.58588975]
[1641695541951,0.00113685,3126.4,3126.2,1.07790637]
[1641695543907,1.1864,3127.6,3126.3,5.1]
[1641695544110,1.66525016,3127.3,3126.3,7.53614102]
[1641695544309,0.00170527,3126.7,3126.3,7.53614102]
[1641695544707,1.66525016,3127.3,3126.3,7.53614102]
[1641695544708,0.00113685,3126.6,3126.3,7.53614102]
[1641695544908,0.00113685,3126.6,3126.3,5.1]
[1641695545110,0.00454739,3127.2,3126.3,5.89968]
[1641695545310,55.23300754,3128.1,3127.1,2.9]
[1641695545613,0.00227369,3127.6,3127.1,2.9]
[1641695545809,0.00227369,3127.6,3127.0,0.01269664]
[1641695546008,0.00170527,3127.5,3127.0,0.01269664]
[1641695546409,6.3906,3129.2,3127.2,0.7993855]
[1641695546410,0.00113684,3127.4,3127.2,0.7993855]
[1641695546610,0.00113684,3127.4,3127.3,0.3]
[1641695546850,16.65264362,3129.2,3127.3,0.3]
[1641695546851,0.01080004,3129.1,3127.3,0.6]
[1641695547050,0.00113684,3127.4,3127.3,0.6]
[1641695547254,0.7994,3128.5,3127.3,7.17273242]
[1641695547450,1.59883,3128.8,3127.4,5.1]
[1641695547849,0.00852635,3128.7,3127.4,5.1]
[1641695548050,0.00852635,3128.7,3127.9,1.53826967]
[1641695548252,0.00795793,3128.6,3127.9,1.53826967]
[1641695548650,0.0073895,3128.5,3127.9,1.53826967]
[1641695548851,0.8067895,3128.5,3127.9,1.53826967]
[1641695549051,0.00682108,3128.4,3127.9,1.53826967]
[1641695549250,0.00682108,3128.4,3127.8,1.53826967]
[1641695549450,1.59883,3128.8,3127.8,1.53826967]
[1641695549451,0.00625265,3128.3,3127.8,1.53826967]
[1641695549850,0.00568423,3128.2,3127.9,1.53826967]
[1641695550049,0.79956,3128.1,3127.9,1.53826967]
[1641695550251,0.80467581,3128.1,3127.9,1.53826967]
[1641695550498,0.00454738,3128.0,3127.9,1.53826967]
[1641695550699,0.90603091,3128.8,3127.7,4.85]
[1641695550903,0.90603091,3128.8,3127.6,3.4941556]
[1641695551099,0.00341055,3128.6,3127.8,0.00113684]
[1641695551401,0.3,3128.7,3127.7,1.48997494]
[1641695551402,0.79964,3128.3,3127.7,1.48997494]
[1641695551612,0.79967,3128.0,3127.7,1.48997494]
[1641695551798,1.59936,3128.0,3127.7,1.48997494]
[1641695551997,0.00113685,3127.9,3127.2,0.13819997]
[1641695552397,0.00113685,3127.9,3127.3,0.00227369]
[1641695552601,0.06008412,3127.8,3127.3,0.00227369]
[1641695552800,0.7997,3127.7,3127.3,0.00227369]
[1641695552998,1.3997,3127.7,3127.0,0.00397896]
[1641695553201,0.52208412,3127.6,3127.0,0.00397896]
[1641695553399,0.52208412,3127.6,3126.7,0.00568423]
[1641695553602,0.06008412,3127.5,3126.7,0.00568423]
[1641695553799,0.79984,3127.4,3126.7,0.00568423]
[1641695554000,0.7998,3127.1,3126.6,0.00625265]
[1641695555053,0.7998,3127.1,3126.5,0.00682108]
[1641695555453,0.79984,3127.4,3127.3,2.14307741]
[1641695555855,1.59965,3127.4,3127.3,2.14307741]
[1641695556258,1.04890672,3127.7,3127.3,2.14307741]
[1641695556456,0.462,3127.6,3127.3,2.14307741]
[1641695556658,0.762,3127.6,3127.4,0.00170527]
[1641695556857,2.39943,3127.7,3127.4,0.00170527]
[1641695557060,0.79981,3127.6,3127.5,0.77188813]
[1641695557257,0.79981,3127.6,3127.4,0.00170527]
[1641695557456,0.79981,3127.6,3127.5,0.00113684]
[1641695557657,0.79981,3127.6,3127.3,2.09478268]
[1641695559506,0.00113685,3127.9,3127.3,2.09478268]
[1641695559707,0.00113685,3127.9,3127.4,2.18715608]
[1641695559907,0.0022737,3127.8,3127.5,0.81216026]
[1641695560208,0.00170527,3127.7,3127.6,2.28220855]
[1641695560406,0.00170527,3127.7,3127.6,2.88220855]
[1641695560606,0.00170527,3127.7,3127.6,4.09054385]
[1641695560808,1.5988,3128.6,3127.8,0.799386]
[1641695561008,1.5988,3128.6,3127.5,0.32122026]
[1641695561208,1.5988,3128.6,3127.5,0.3085]
[1641695561209,0.79967,3128.3,3127.5,0.3085]
[1641695561414,0.462,3128.2,3128.0,0.0386884]
[1641695561608,1.12479246,3128.2,3128.0,0.0386884]
[1641695561853,5.16222404,3128.1,3128.0,0.0386884]
[1641695562053,4.6,3128.0,3127.5,0.3085]
[1641695562255,0.79972,3127.8,3127.5,0.3085]
[1641695562652,0.79972,3127.8,3127.6,1.55072063]
[1641695562653,0.05995034,3127.7,3127.6,1.55072063]
[1641695563654,0.05995034,3127.7,3127.5,1.85922063]
[1641695564253,0.05995034,3127.7,3127.5,0.3085]
[1641695565155,0.05995034,3127.7,3127.5,1.85922063]
[1641695565805,0.05995034,3127.7,3127.5,0.3085]
[1641695566005,1.50120476,3127.9,3127.5,0.3085]
[1641695566204,0.05981679,3127.6,3127.5,0.3085]
[1641695566606,0.05981679,3127.6,3127.5,0.30963684]
[1641695567605,3.35981679,3127.6,3127.5,0.30963684]
[1641695567807,4.14485011,3127.6,3127.5,0.30963684]
[1641695568106,5.1,3127.5,3127.3,2.09478268]
[1641695568310,5.14988,3127.4,3127.3,2.09478268]
[1641695568507,5.40968329,3127.4,3127.3,2.09478268]
[1641695568706,4.75,3127.3,3127.1,1.55072063]
[1641695569110,4.75,3127.3,3126.4,0.13819997]
[1641695569111,5.1,3127.1,3126.4,2.12813334]
[1641695569353,5.1,3127.1,3126.3,3.8747]
[1641695569354,0.80012,3127.0,3126.8,1.56606637]
[1641695569553,5.562,3126.9,3126.8,1.56606637]
[1641695569755,5.562,3126.9,3125.9,6.03135426]
[1641695569756,5.1,3126.8,3125.9,6.03135426]
[1641695569955,0.80011,3126.4,3125.9,6.03135426]
[1641695570155,1.60024,3126.3,3126.0,0.0073895]
[1641695570356,0.80012,3126.2,3126.0,0.0073895]
[1641695570753,0.80012,3126.2,3125.8,0.00852635]
[1641695570754,1.65981195,3126.2,3125.8,0.00852635]
[1641695570953,1.65981195,3126.2,3125.7,0.19712635]
[1641695570954,0.05957195,3126.1,3125.7,0.19712635]
[1641695571154,1.66167722,3126.1,3125.7,0.19712635]
[1641695571354,0.00113685,3126.0,3125.7,0.19712635]
[1641695571554,0.00113685,3126.0,3125.4,2.66034727]
[1641695571955,0.00113685,3126.0,3125.5,0.00170527]
[1641695572354,0.00113685,3126.0,3125.1,0.9440375]
[1641695572355,0.00113685,3126.0,3125.4,0.0022737]
[1641695572558,0.00113685,3126.0,3125.2,1.83665837]
[1641695572755,0.80133685,3126.0,3125.3,0.00284212]
[1641695573202,0.05957195,3125.9,3125.3,0.00284212]
[1641695573502,1.60032,3125.7,3125.1,0.88287962]
[1641695573702,1.60032,3125.7,3125.1,0.83287962]
[1641695573902,0.00170527,3125.6,3125.1,0.83287962]
[1641695574104,0.00170527,3125.6,3125.1,2.71144129]
[1641695574304,0.00113685,3125.5,3125.1,2.71144129]
[1641695574502,0.00113685,3125.5,3125.1,0.83287962]
[1641695574704,0.00170527,3125.6,3125.1,2.69278813]
[1641695575105,0.00113685,3125.5,3125.1,2.69278813]
[1641695575503,1.6002,3125.8,3125.1,2.69278813]
[1641695575903,1.6002,3125.8,3125.2,4.35]
[1641695576104,0.80008,3125.6,3125.3,1.83009212]
[1641695576305,1.05957195,3126.3,3125.3,1.83009212]
[1641695576504,1.05957195,3126.3,3125.4,1.16679152]
[1641695576765,1.05957195,3126.3,3125.9,1.21353649]
[1641695576766,1.60007,3126.1,3125.9,1.21353649]
[1641695576954,0.00284212,3126.2,3126.0,2.04814868]
[1641695577151,0.05957195,3127.1,3126.0,2.04814868]
[1641695577152,0.05957195,3127.1,3126.4,1.04012494]
[1641695577350,2.0617376,3127.4,3126.2,2.00181639]
[1641695577550,0.00738951,3127.0,3126.2,2.00181639]
[1641695577951,0.00682109,3126.9,3126.2,2.00181639]
[1641695578351,0.80603266,3126.8,3126.2,2.00181639]
[1641695578651,0.80603266,3126.8,3126.3,1.2242945]
[1641695578652,0.00568424,3126.7,3126.3,1.2242945]
[1641695578851,0.00568424,3126.7,3126.4,1.80698404]
[1641695579152,0.00511582,3126.6,3126.4,1.80513826]
[1641695579350,0.00511582,3126.6,3126.3,1.571415]
[1641695579554,0.00454739,3126.5,3126.3,1.571415]
[1641695579954,0.00397897,3126.4,3126.3,1.571415]
[1641695581000,0.79189206,3126.5,3126.2,3.2]
[1641695581401,0.79189206,3126.5,3126.2,4.04998807]
[1641695581602,0.79189206,3126.5,3126.2,5.06264133]
[1641695581802,0.79189206,3126.5,3126.3,1.93464257]
[1641695582003,0.47741232,3127.5,3126.3,1.93464257]
[1641695582205,2.02133332,3127.6,3126.8,1.08946849]
[1641695582402,2.02133332,3127.6,3126.3,1.93464257]
[1641695582403,0.00454739,3127.2,3126.3,1.93464257]
[1641695582601,0.00454739,3127.2,3126.3,3.50605757]
[1641695582803,0.00397896,3127.1,3126.3,3.50605757]
[1641695583203,0.00341054,3127.0,3126.3,3.50605757]
[1641695583401,0.00341054,3127.0,3126.4,0.79969]
[1641695583604,0.00341054,3127.0,3126.3,3.50605757]
[1641695583605,0.00284212,3126.9,3126.7,1.98887104]
[1641695583808,0.00284212,3126.9,3126.8,7.5592353]
[1641695584002,0.462,3128.3,3127.3,0.72391963]
[1641695584256,0.462,3128.3,3126.9,3.82]
[1641695584450,0.01023162,3128.2,3126.9,6.00976729]
[1641695584650,1.5992,3127.8,3126.9,6.00976729]
[1641695584855,1.5992,3127.8,3126.9,2.18976729]
[1641695585051,0.0073895,3127.7,3126.9,2.18976729]
[1641695585450,0.00682108,3127.6,3127.0,0.71124058]
[1641695585650,0.00682108,3127.6,3127.1,1.87345948]
[1641695585851,0.79962,3127.4,3127.1,1.87345948]
[1641695586251,0.00511581,3127.3,3127.1,1.82345948]
[1641695586653,0.00454739,3127.2,3127.1,1.82345948]
[1641695587254,0.00454739,3127.2,3127.0,0.7996014]
[1641695587654,0.00397896,3127.1,3127.0,0.7996014]
[1641695587853,0.00397896,3127.1,3127.0,1.82247084]
[1641695591007,0.00397896,3127.1,3126.9,1.571415]
[1641695591307,0.79967,3127.2,3127.0,1.571415]
[1641695591758,1.59934,3127.6,3127.0,1.571415]
[1641695591759,0.00397896,3127.1,3127.0,1.571415]
[1641695591951,0.00397896,3127.1,3126.9,2.3710396]
[1641695592151,0.00625266,3127.5,3126.9,2.3710396]
[1641695592351,1.59934,3127.6,3127.0,1.81214984]
[1641695592752,0.79964,3127.4,3126.9,2.3710396]
[1641695593152,0.00511581,3127.3,3126.9,2.3710396]
[1641695593554,0.00454739,3127.2,3127.0,1.82692745]
[1641695593753,0.00454739,3127.2,3126.9,2.3710396]
[1641695593955,0.00397896,3127.1,3126.9,2.3710396]
[1641695594358,0.00341054,3127.0,3126.9,2.3710396]
[1641695594555,0.00341054,3127.0,3126.9,4.29256298]
[1641695594759,0.00341054,3127.0,3126.9,4.59256298]
[1641695594958,0.00341054,3127.0,3126.9,4.89256298]
[1641695595357,0.00341054,3127.0,3126.9,7.29256298]
[1641695595598,0.00341054,3127.0,3126.9,5.72114798]
[1641695597200,0.00341054,3127.0,3126.9,3.32114798]
[1641695597400,0.83493113,3128.0,3126.9,2.52152338]
[1641695597600,0.83493113,3128.0,3126.8,1.5990899]
[1641695597803,0.00397896,3127.7,3126.8,1.5990899]
[1641695598101,0.00341054,3127.6,3126.9,1.81786438]
[1641695598301,0.00341054,3127.6,3127.2,0.7995776]
[1641695598501,0.00284212,3127.5,3127.2,0.7995776]
[1641695598902,0.00227369,3127.4,3127.2,2.37529905]
[1641695599272,0.00170527,3127.3,3127.2,2.37529905]
[1641695601465,1.59918,3127.8,3127.2,2.37529905]
[1641695601466,0.76613246,3127.8,3127.2,2.37529905]
[1641695601665,0.76613246,3127.8,3127.2,1.57572145]
[1641695601866,0.00227369,3127.7,3127.2,1.57572145]
[1641695602066,1.60151369,3127.7,3127.2,1.57572145]
[1641695602270,0.00170527,3127.6,3127.2,1.57572145]
[1641695602667,0.00113685,3127.5,3127.2,1.57572145]
[1641695602869,0.79968,3127.4,3127.1,1.57572145]
[1641695603700,0.79968,3127.4,3127.0,1.57572145]
[1641695604103,0.79968,3127.4,3127.1,0.00113684]
[1641695604501,0.79968,3127.4,3127.1,1.57685829]
[1641695605506,1.45925195,3127.4,3127.1,1.57685829]
[1641695605805,0.79986,3127.3,3127.1,1.57685829]
[1641695606001,2.39959,3127.3,3127.1,1.57685829]
[1641695606202,2.39959,3127.3,3127.1,0.00113684]
[1641695606203,5.00957195,3127.2,3127.1,0.00113684]
[1641695606605,0.79986,3126.9,3126.6,0.00397896]
[1641695607064,0.79986,3126.9,3126.7,1.3026496]
[1641695607358,0.79986,3126.9,3126.8,2.25284212]
[1641695607759,0.79969,3127.1,3126.8,2.25284212]
[1641695607959,0.79969,3127.1,3126.8,0.00284212]
[1641695608161,0.79969,3127.1,3126.9,0.00227369]
[1641695608361,0.79969,3127.1,3126.8,0.00284212]
[1641695608563,0.00170527,3127.6,3126.8,0.00284212]
[1641695608759,1.60096527,3127.6,3127.0,0.75016371]
[1641695608959,0.00113685,3127.5,3127.0,1.85325183]
[1641695609161,0.00113685,3127.5,3127.1,0.00113685]
[1641695609961,0.00113685,3127.5,3127.0,1.57572145]
[1641695610160,0.00113685,3127.5,3127.1,0.00113685]
[1641695610360,0.80072685,3127.5,3127.1,0.00113685]
[1641695610802,0.80072685,3127.5,3127.1,1.5768583]
[1641695610803,0.05957195,3127.4,3127.1,1.5768583]
[1641695611305,1.59972,3127.3,3127.1,0.00113685]
[1641695611502,1.59972,3127.3,3126.7,1.57572145]
[1641695611503,5.1,3127.1,3126.7,1.57572145]
[1641695611702,5.562,3127.1,3126.7,1.57572145]
[1641695611903,0.462,3127.1,3126.8,0.00170527]
[1641695612101,1.65948195,3127.0,3126.8,0.00170527]
[1641695612501,0.85953195,3126.9,3126.8,0.00170527]
[1641695613103,0.85953195,3126.9,3126.7,0.00227369]
[1641695613507,0.79996,3126.9,3126.7,0.00227369]
[1641695614003,0.00113685,3127.5,3127.2,1.3479951]
[1641695614267,0.00113685,3127.5,3126.7,1.21377369]
[1641695614451,0.00170527,3127.4,3126.7,1.21377369]
[1641695614651,0.80144527,3127.4,3126.7,1.21377369]
[1641695614951,0.79971,3127.0,3126.7,0.00227369]
[1641695615352,0.79971,3127.0,3126.9,1.57572145]
[1641695615750,0.79971,3127.0,3126.9,1.57685829]
[1641695616753,1.60060685,3127.3,3126.9,1.57685829]
[1641695617150,1.60060685,3127.3,3126.9,0.00113684]
[1641695617350,0.79971,3127.0,3126.9,0.00113684]
[1641695617551,1.60060685,3127.3,3126.9,0.00113684]
[1641695618002,1.60060685,3127.3,3127.0,1.57985994]
[1641695618808,0.79964,3127.2,3127.0,1.57985994]
[1641695619004,0.79964,3127.2,3126.9,0.00113684]
[1641695619005,0.79964,3127.2,3127.1,1.57985994]
[1641695619806,0.74964,3127.2,3127.1,1.57985994]
[1641695621010,0.74964,3127.2,3127.1,2.62727028]
[1641695621209,0.00113685,3127.3,3127.1,2.62727028]
[1641695621608,0.00113685,3127.3,3127.1,4.48283344]
[1641695622052,0.00113685,3127.3,3127.2,1.81840611]
[1641695622853,0.00113685,3127.3,3127.1,1.04741034]
[1641695623059,0.00113685,3127.3,3127.2,1.80486764]
[1641695623855,0.00113685,3127.3,3127.1,1.84700004]
[1641695624256,0.00113685,3127.3,3127.1,3.66775534]
[1641695624456,0.00113685,3127.3,3127.1,1.84700004]
[1641695624855,0.80076685,3127.3,3127.1,1.84700004]
[1641695626009,0.00113685,3127.3,3127.1,1.84700004]
[1641695626613,0.00113685,3127.3,3127.1,3.67442702]
[1641695627010,0.00113685,3127.3,3127.1,2.62701668]
[1641695627214,0.00113685,3127.3,3126.9,1.60023924]
[1641695627410,0.00113685,3127.3,3126.9,3.42218652]
[1641695627609,0.00113685,3127.3,3127.0,0.799611]
[1641695627810,0.00113685,3127.3,3127.1,1.86017235]
[1641695628011,0.00113685,3127.3,3127.2,1.20335925]
[1641695629855,0.00113685,3127.3,3127.2,3.0236015]
[1641695630256,0.00113685,3127.3,3127.2,1.20335925]
[1641695632160,1.59924,3127.6,3127.2,1.15335925]
[1641695632558,0.00113685,3127.5,3127.2,1.95292655]
[1641695632758,0.79958,3127.4,3127.2,1.95292655]
[1641695634000,0.00113685,3127.5,3127.2,1.95292655]
[1641695634404,0.00113685,3127.5,3127.2,3.7522736]
[1641695634602,0.00113685,3127.5,3127.4,0.92543508]
[1641695635401,0.00113685,3127.5,3127.4,2.49143431]
[1641695635602,0.00113685,3127.5,3127.4,1.56599923]
[1641695635801,0.00113685,3127.5,3127.2,1.95293935]
[1641695636002,0.79959,3127.4,3127.2,1.95293935]
[1641695636603,0.79959,3127.4,3127.3,0.85336776]
[1641695638758,0.00113685,3127.5,3127.3,3.23718803]
[1641695638954,0.00113685,3127.5,3127.4,5.26060776]
[1641695639154,0.00113685,3127.5,3127.4,6.56060776]
[1641695639354,0.00113685,3127.5,3127.4,7.02260776]
[1641695639657,0.00113685,3127.5,3127.4,7.15230776]
[1641695640062,1.59879,3128.5,3127.6,0.0022737]
[1641695640259,1.59879,3128.5,3127.4,1.5917]
[1641695640504,0.00397896,3128.2,3127.5,2.11060776]
[1641695640905,0.00341054,3128.1,3127.4,1.1297]
[1641695641303,0.00284211,3128.0,3127.5,1.83768434]
[1641695641507,0.79951,3127.9,3127.4,1.1297]
[1641695641704,0.79951,3127.9,3127.3,3.74625231]
[1641695641705,0.80178369,3127.9,3127.3,2.94670551]
[1641695641905,2.03287511,3128.7,3127.4,4.6]
[1641695642104,2.03287511,3128.7,3127.3,3.73927009]
[1641695642307,0.00227369,3128.2,3127.5,0.00170527]
[1641695642504,0.7995,3127.9,3127.5,0.7994832]
[1641695642705,0.7995,3127.9,3127.5,2.65897479]
[1641695642905,0.7995,3127.9,3127.6,0.00113685]
[1641695643905,0.7995,3127.9,3127.4,0.0022737]
[1641695647363,0.0596044,3127.8,3127.4,0.0022737]
[1641695647562,2.9837565,3127.8,3127.4,0.0022737]
[1641695647860,2.9837565,3127.8,3126.7,0.00625266]
[1641695647861,0.79982,3127.7,3126.7,0.00625266]
[1641695648108,2.4594244,3127.7,3126.7,0.00625266]
[1641695648306,0.0596044,3127.6,3126.7,0.00625266]
[1641695648707,2.72383813,3127.6,3126.7,0.00625266]
[1641695649007,3.32383813,3127.6,3126.7,0.00625266]
[1641695649210,1.0596044,3127.5,3126.7,0.00625266]
[1641695649406,0.79983,3127.1,3126.6,0.00682108]
[1641695649608,1.79983,3127.1,3126.6,0.00682108]
[1641695649807,1.79983,3127.1,3126.1,6.7227308]
[1641695649808,1.79983,3127.1,3126.4,0.80862106]
[1641695650210,1.79983,3127.1,3126.5,0.00738951]
[1641695650407,0.79983,3127.1,3126.5,0.00738951]
[1641695650809,0.79983,3127.1,3126.4,0.00795793]
[1641695651208,0.79983,3127.1,3126.5,3.2]
[1641695651765,0.79983,3127.1,3126.6,0.00682108]
[1641695651951,0.79991,3126.8,3126.6,0.00682108]
[1641695652656,2.54564195,3126.7,3126.6,0.00682108]
[1641695652855,2.54564195,3126.7,3126.5,3.2]
[1641695652856,4.7,3126.6,3126.5,4.76680258]
[1641695653055,5.50011,3126.6,3126.5,4.76680258]
[1641695653453,5.5597144,3126.6,3125.6,3.9280368]
[1641695653652,0.80011,3126.3,3125.4,3.9447]
[1641695653854,3.2004,3126.3,3125.8,0.00454739]
[1641695654659,0.80011,3126.1,3125.8,0.00454739]
[1641695654858,0.80006001,3126.1,3125.8,0.00454739]
[1641695655357,0.80006001,3126.1,3125.4,0.00682109]
[1641695655604,0.80011,3126.1,3125.4,0.00682109]
[1641695655805,0.80012,3125.8,3125.4,0.00682109]
[1641695659759,0.8597244,3125.8,3125.4,0.00682109]
[1641695660160,1.6599044,3125.8,3125.4,0.00682109]
[1641695660361,0.80023,3125.6,3125.4,0.00682109]
[1641695660761,0.80023,3125.6,3125.2,0.00795793]
[1641695661362,0.80025,3125.5,3125.2,0.00795793]
[1641695661562,0.80028,3125.4,3125.2,0.00795793]
[1641695661963,1.80028,3125.4,3125.2,0.00795793]
[1641695662163,4.8096044,3125.3,3125.2,0.00795793]
[1641695662564,6.1096044,3125.3,3125.2,0.00795793]
[1641695662766,5.10795793,3125.1,3124.4,10.0880368]
[1641695663015,0.80056,3124.8,3124.4,10.0880368]
[1641695663217,0.80056,3124.8,3124.7,1.56257976]
[1641695663410,1.80056,3124.8,3124.7,1.56257976]
[1641695663610,5.35056,3124.8,3124.7,1.56542188]
[1641695664210,0.80056,3124.8,3124.7,4.76542188]
[1641695664410,0.80056,3124.8,3124.7,3.20284212]
[1641695664611,1.80056,3124.8,3124.7,3.20284212]
[1641695664812,0.80056,3124.8,3124.7,3.20284212]
[1641695665011,1.80056,3124.8,3124.7,3.20284212]
[1641695665212,6.90056,3124.8,3124.7,0.21144212]
[1641695665415,5.1,3124.7,3124.3,1.56257976]
[1641695665611,5.1,3124.7,3124.1,0.07997]
[1641695665612,0.80055,3124.5,3124.1,1.64254976]
[1641695665814,0.80055,3124.5,3124.4,0.00170527]
[1641695666111,1.40055,3124.5,3124.4,0.00170527]
[1641695666515,5.15055,3124.5,3124.4,0.00170527]
[1641695666967,6.15055,3124.5,3124.4,0.00170527]
[1641695667168,2.10055,3124.5,3124.4,0.00170527]
[1641695667368,1.80055,3124.5,3124.4,0.00170527]
[1641695667568,0.80055,3124.5,3124.4,0.00170527]
[1641695667770,10.0596044,3125.0,3124.4,0.00170527]
[1641695667970,0.00795793,3125.1,3124.4,0.00170527]
[1641695668169,0.00113685,3124.9,3124.4,0.00170527]
[1641695668374,0.00170527,3125.0,3124.1,0.00341054]
[1641695668770,0.00113685,3124.9,3124.6,0.8002407]
[1641695668972,0.00113685,3124.9,3124.1,1.60401944]
[1641695669170,0.00170527,3125.0,3124.1,0.00341054]
[1641695669370,0.00170527,3125.0,3124.2,0.00284212]
[1641695669569,0.00170527,3125.0,3124.0,3.7149]
[1641695669570,0.00113685,3124.9,3124.1,0.00341054]
[1641695669772,0.83687299,3124.9,3124.1,0.00341054]
[1641695669970,0.83573614,3124.9,3124.1,0.00341054]
[1641695670172,0.83573614,3124.9,3124.3,0.69359282]
[1641695670607,1.63614614,3124.9,3124.3,0.69359282]
[1641695671206,0.12552719,3125.0,3124.3,0.69359282]
[1641695671408,0.12552719,3125.0,3124.4,0.00341054]
[1641695671608,1.60880793,3125.1,3124.4,0.00341054]
[1641695671809,0.80041,3124.9,3124.4,0.00341054]
[1641695672107,0.80041,3124.9,3124.1,0.00511581]
[1641695672710,5.1,3124.8,3124.0,4.62212865]
[1641695672910,0.80046,3124.6,3124.0,4.62212865]
[1641695673310,0.00227369,3124.5,3124.0,4.62212865]
[1641695673710,0.00170527,3124.4,3124.0,4.62212865]